bitfinex/quotes_BTCUSD_20250610
["timestamp","ask_amount","ask_price","bid_price","bid_amount"]
[1749566819892,0.22111474,108540.0,108530.0,0.86858165]
[1749566820098,0.21190232,108540.0,108530.0,0.86858165]
[1749566820320,0.21190232,108540.0,108530.0,0.86852745]
[1749566820541,0.21190232,108540.0,108530.0,0.83197715]
[1749566820800,0.21190283,108540.0,108530.0,0.86653169]
[1749566821014,0.21190283,108540.0,108530.0,0.86553169]
[1749566821232,0.21190283,108540.0,108530.0,0.87053145]
[1749566821733,0.21190283,108540.0,108530.0,0.23474948]
[1749566822000,0.20269007,108540.0,108530.0,0.17984926]
[1749566822227,0.54269007,108540.0,108530.0,0.27167105]
[1749566823146,0.54269007,108540.0,108530.0,0.26867105]
[1749566823373,0.54269007,108540.0,108530.0,0.24125425]
[1749566824025,0.54269007,108540.0,108530.0,0.23925425]
[1749566824457,0.54269007,108540.0,108530.0,0.24025425]
[1749566824721,0.34,108540.0,108530.0,0.90345251]
[1749566824940,0.21388289,108550.0,108540.0,0.0319]
[1749566825161,0.20467114,108550.0,108540.0,0.82300679]
[1749566825373,0.20467114,108550.0,108540.0,0.18722533]
[1749566825591,0.20467114,108550.0,108540.0,0.82300679]
[1749566826050,0.20467114,108550.0,108540.0,0.18722533]
[1749566826051,0.002,108550.0,108540.0,0.18722533]
[1749566826280,0.01121175,108550.0,108540.0,1.35963254]
[1749566826503,0.01121175,108550.0,108540.0,1.32307715]
[1749566826504,0.22309456,108550.0,108540.0,1.32307715]
[1749566826729,0.22309456,108550.0,108540.0,0.68729569]
[1749566826730,0.0296355,108550.0,108540.0,0.68729569]
[1749566826941,0.0296355,108550.0,108540.0,1.32307715]
[1749566827176,0.03884758,108550.0,108540.0,1.32407715]
[1749566827401,0.21388239,108550.0,108540.0,1.32407715]
[1749566827624,0.2323069,108550.0,108540.0,1.32407715]
[1749566827859,0.21388332,108550.0,108540.0,1.32407715]
[1749566828103,0.2046714,108550.0,108540.0,0.72583342]
[1749566828309,0.2046714,108550.0,108540.0,0.77189198]
[1749566828618,0.2046714,108550.0,108540.0,0.79929659]
[1749566828862,0.01121192,108550.0,108540.0,0.79929659]
[1749566829077,0.002,108550.0,108540.0,1.42599715]
[1749566829299,0.002,108550.0,108540.0,1.42109571]
[1749566829520,0.002,108550.0,108540.0,1.49436883]
[1749566829961,0.01121175,108550.0,108540.0,0.85858737]
[1749566830176,0.002,108550.0,108540.0,1.49436883]
[1749566830424,0.01121175,108550.0,108540.0,1.49436883]
[1749566831089,0.02042367,108550.0,108540.0,1.49436883]
[1749566831538,0.21388306,108550.0,108540.0,1.44436883]
[1749566831795,0.22309523,108550.0,108540.0,1.49436883]
[1749566832013,0.22309523,108550.0,108540.0,1.44436883]
[1749566832529,0.55388331,108550.0,108540.0,0.50766737]
[1749566832737,0.55388331,108550.0,108540.0,0.79020947]
[1749566832738,0.54467131,108550.0,108540.0,0.79020947]
[1749566832958,0.54467131,108550.0,108540.0,1.32507093]
[1749566833207,0.54467131,108550.0,108540.0,1.42599093]
[1749566833463,0.36963549,108550.0,108540.0,1.42599093]
[1749566833662,0.37884766,108550.0,108540.0,1.44436883]
[1749566834058,0.03884766,108550.0,108540.0,1.44436883]
[1749566834516,0.22309455,108550.0,108540.0,1.44436883]
[1749566834790,0.02963541,108550.0,108540.0,1.44436883]
[1749566835012,0.21388297,108550.0,108540.0,1.44436883]
[1749566836645,0.20467072,108550.0,108540.0,1.44436883]
[1749566836841,0.22309505,108550.0,108540.0,1.44436883]
[1749566837073,0.02042341,108550.0,108540.0,1.44436883]
[1749566837325,0.02042374,108550.0,108540.0,1.44440883]
[1749566837537,0.02042349,108550.0,108540.0,1.83440883]
[1749566837745,0.02042349,108550.0,108540.0,1.76113571]
[1749566837968,0.002,108550.0,108540.0,1.76113571]
[1749566838191,0.02042018,108570.0,108560.0,0.21454085]
[1749566838402,0.01120996,108570.0,108560.0,2.1229638]
[1749566838645,0.01120996,108570.0,108560.0,2.09965717]
[1749566838860,0.002,108570.0,108560.0,2.09965717]
[1749566839290,0.002,108570.0,108560.0,2.14125896]
[1749566839503,0.002,108570.0,108560.0,7.24125896]
[1749566839723,0.002,108570.0,108560.0,7.02535896]
[1749566839998,0.002,108570.0,108560.0,2.47275896]
[1749566840214,0.002,108570.0,108560.0,2.47775896]
[1749566840215,0.01121005,108570.0,108560.0,2.47775896]
[1749566840430,0.002,108570.0,108560.0,2.40475896]
[1749566840652,0.01120988,108570.0,108560.0,2.40475896]
[1749566840870,0.02042001,108570.0,108560.0,3.07385717]
[1749566841075,0.02042001,108570.0,108560.0,3.12385717]
[1749566841076,0.01120988,108570.0,108560.0,3.12385717]
[1749566841296,0.002,108570.0,108560.0,3.66497896]
[1749566841510,0.002,108570.0,108560.0,4.34832019]
[1749566841727,0.002,108570.0,108560.0,4.35753134]
[1749566841951,0.002,108570.0,108560.0,4.39373142]
[1749566842390,0.002,108570.0,108560.0,4.38452035]
[1749566842606,0.002,108570.0,108560.0,4.39373142]
[1749566842855,0.002,108570.0,108560.0,4.18186797]
[1749566843073,0.002,108570.0,108560.0,3.83094797]
[1749566843292,0.002,108570.0,108560.0,1.24918505]
[1749566843293,0.02963048,108570.0,108560.0,1.24918505]
[1749566843513,0.02042052,108570.0,108560.0,1.95295367]
[1749566843735,0.02042001,108570.0,108560.0,1.96749452]
[1749566843934,0.0296304,108570.0,108560.0,1.96749452]
[1749566844153,0.03884096,108570.0,108560.0,1.96749452]
[1749566844563,0.01120996,108570.0,108560.0,1.33171306]
[1749566844708,0.01120988,108570.0,108560.0,1.96749452]
[1749566844921,0.002,108570.0,108560.0,1.96749452]
[1749566845150,0.002,108570.0,108560.0,2.60327598]
[1749566845563,0.002,108570.0,108560.0,2.94327598]
[1749566845763,0.002,108570.0,108560.0,8.23192972]
[1749566845920,0.002,108570.0,108560.0,8.31432053]
[1749566846145,0.002,108570.0,108560.0,8.33274241]
[1749566846338,0.002,108570.0,108560.0,8.32353151]
[1749566846621,0.002,108570.0,108560.0,8.33274241]
[1749566846827,0.002,108570.0,108560.0,8.32353151]
[1749566846976,0.07508272,108590.0,108580.0,0.2]
[1749566847174,0.0842909,108590.0,108580.0,1.42159848]
[1749566847383,0.09349917,108590.0,108580.0,1.42159848]
[1749566847835,0.0842909,108590.0,108580.0,1.42159848]
[1749566848587,0.10270769,108590.0,108580.0,1.42460286]
[1749566848808,0.09349925,108590.0,108580.0,1.36969571]
[1749566849222,0.07508272,108590.0,108580.0,1.36869571]
[1749566849437,0.002,108590.0,108580.0,1.70669571]
[1749566849656,0.002,108590.0,108580.0,2.40042776]
[1749566849911,0.002,108590.0,108580.0,2.3911975]
[1749566850116,0.002,108590.0,108580.0,2.59381298]
[1749566850542,0.002,108590.0,108580.0,2.60602243]
[1749566850751,0.002,108590.0,108580.0,2.60602252]
[1749566850960,0.002,108590.0,108580.0,2.58460327]
[1749566851178,0.002,108590.0,108580.0,1.70937604]
[1749566851420,0.002,108590.0,108580.0,2.32672595]
[1749566851633,0.002,108590.0,108580.0,2.32372595]
[1749566851851,0.002,108590.0,108580.0,2.17284595]
[1749566852061,0.002,108590.0,108580.0,2.27872595]
[1749566852062,0.01120835,108590.0,108580.0,2.27872595]
[1749566852276,0.01120827,108590.0,108580.0,2.32872595]
[1749566852504,0.02041679,108590.0,108580.0,2.25555571]
[1749566852718,0.02041679,108590.0,108580.0,2.32872595]
[1749566853148,0.02041679,108590.0,108580.0,1.83882595]
[1749566853374,0.21380501,108590.0,108580.0,1.34794595]
[1749566853591,0.27767921,108590.0,108580.0,0.49897054]
[1749566853833,0.29347921,108590.0,108580.0,0.5304257]
[1749566854127,0.27767921,108590.0,108580.0,1.19366442]
[1749566854581,0.27767921,108590.0,108580.0,1.15720716]
[1749566854808,0.27767921,108590.0,108580.0,1.07086801]
[1749566855038,0.29347921,108590.0,108580.0,0.53896655]
[1749566855267,0.29347921,108590.0,108580.0,0.56643949]
[1749566855493,0.22039649,108590.0,108580.0,0.56643949]
[1749566855719,0.22039649,108590.0,108580.0,0.53896655]
[1749566855942,0.20459649,108590.0,108580.0,1.17474801]
[1749566856403,0.20459649,108590.0,108580.0,1.18994801]
[1749566856626,0.19538788,108590.0,108580.0,1.1930397]
[1749566856848,0.19538788,108590.0,108580.0,1.24488136]
[1749566857067,0.19538788,108590.0,108580.0,1.2082397]
[1749566858225,0.19538788,108590.0,108580.0,0.57245824]
[1749566858460,0.19538788,108590.0,108580.0,0.45637824]
[1749566858676,0.3007706,108590.0,108580.0,0.43815254]
[1749566858896,0.3007706,108590.0,108580.0,0.12184778]
[1749566859114,0.6407706,108590.0,108580.0,0.0943534]
[1749566859820,1.27655206,108590.0,108580.0,0.003]
[1749566860039,1.37743206,108590.0,108580.0,0.003]
[1749566860501,0.7416506,108590.0,108580.0,0.002]
[1749566860725,0.7701306,108590.0,108580.0,0.002]
[1749566860939,0.5334056,108580.0,108570.0,0.01454085]
[1749566861162,0.5663056,108580.0,108570.0,0.10589425]
[1749566862074,0.04211047,108570.0,108560.0,0.02749438]
[1749566862309,0.19345906,108550.0,108540.0,0.06619267]
[1749566862528,0.22445906,108550.0,108540.0,0.12088778]
[1749566862743,0.56445906,108550.0,108540.0,0.0933934]
[1749566863203,0.54875906,108550.0,108540.0,0.0933934]
[1749566863426,0.56515906,108550.0,108540.0,0.0933934]
[1749566863645,0.56515906,108550.0,108540.0,0.00204]
[1749566864087,0.66603906,108550.0,108540.0,0.00204]
[1749566864532,0.66603906,108550.0,108540.0,0.00304]
[1749566864533,1.30182052,108550.0,108540.0,0.00304]
[1749566864748,0.66603906,108550.0,108540.0,0.00304]
[1749566864965,0.56515906,108550.0,108540.0,0.00204]
[1749566865181,0.66607906,108550.0,108540.0,0.00304]
[1749566865421,0.56515906,108550.0,108540.0,0.00304]
[1749566866083,0.54875906,108550.0,108540.0,0.10893425]
[1749566867009,0.53345906,108550.0,108540.0,0.10893425]
[1749566867221,0.19345906,108550.0,108540.0,0.10893425]
[1749566868293,0.56535906,108550.0,108540.0,0.0943934]
[1749566869816,0.54975906,108550.0,108540.0,0.0943934]
[1749566870460,0.54975906,108550.0,108540.0,0.10893425]
[1749566870461,0.53345906,108550.0,108540.0,0.10893425]
[1749566870707,0.53345906,108550.0,108540.0,1.14023571]
[1749566870708,0.20267114,108550.0,108540.0,1.14023571]
[1749566870922,0.19344132,108560.0,108550.0,0.01454085]
[1749566871134,0.53344132,108560.0,108550.0,0.74167571]
[1749566871572,0.56624132,108560.0,108550.0,0.10589425]
[1749566871793,0.53345906,108550.0,108540.0,0.31118085]
[1749566872007,0.54267114,108550.0,108540.0,1.05341571]
[1749566872657,0.55188339,108550.0,108540.0,1.06941571]
[1749566872867,0.54267131,108550.0,108540.0,1.09691009]
[1749566873099,0.20267131,108550.0,108540.0,1.09691009]
[1749566873326,0.20267131,108550.0,108540.0,1.13356838]
[1749566874177,0.20267131,108550.0,108540.0,1.13456838]
[1749566874388,0.20267131,108550.0,108540.0,1.09891009]
[1749566874857,0.20267131,108550.0,108540.0,1.09791009]
[1749566875065,0.20267131,108550.0,108540.0,1.09991009]
[1749566875476,0.54267131,108550.0,108540.0,1.09991009]
[1749566876144,0.54267131,108550.0,108540.0,0.44812863]
[1749566876381,0.54267131,108550.0,108540.0,0.53394863]
[1749566876589,0.54267131,108550.0,108540.0,0.54904863]
[1749566878092,0.54267131,108550.0,108540.0,0.41848778]
[1749566878312,0.54267131,108550.0,108540.0,0.3909934]
[1749566878519,0.54267131,108550.0,108540.0,0.40553425]
[1749566879760,0.54267131,108550.0,108540.0,0.50645425]
[1749566880761,0.54267131,108550.0,108540.0,0.40553425]
[1749566880998,1.31047277,108550.0,108540.0,0.00504]
[1749566882084,1.31047277,108550.0,108540.0,0.00304]
[1749566882085,1.40182617,108550.0,108540.0,0.00304]
[1749566882331,1.47490889,108550.0,108540.0,0.00304]
[1749566883036,1.47490889,108550.0,108540.0,0.00204]
[1749566883272,1.40182617,108550.0,108540.0,0.00204]
[1749566883492,1.40182617,108550.0,108540.0,0.00304]
[1749566885978,1.43030617,108550.0,108540.0,0.00304]
[1749566886695,0.70317131,108550.0,108540.0,0.00304]
[1749566886917,0.57377131,108550.0,108540.0,0.00304]
[1749566887408,0.65969131,108550.0,108540.0,0.0943934]
[1749566887645,0.65969131,108550.0,108540.0,0.102946]
[1749566887878,0.65969131,108550.0,108540.0,0.10294594]
[1749566888095,0.55877131,108550.0,108540.0,0.1029459]
[1749566888551,0.65969131,108550.0,108540.0,0.10294593]
[1749566889235,0.65969131,108550.0,108540.0,0.103015]
[1749566889447,0.65969131,108550.0,108540.0,0.0943934]
[1749566889666,0.65969131,108550.0,108540.0,0.10301495]
[1749566889890,0.57527131,108550.0,108540.0,0.0943934]
[1749566890154,1.31197277,108550.0,108540.0,0.00304]
[1749566890380,1.40332617,108550.0,108540.0,0.01166187]
[1749566890624,0.76754471,108550.0,108540.0,0.01166187]
[1749566890879,1.40332617,108550.0,108540.0,0.01166234]
[1749566891326,1.40332617,108550.0,108540.0,0.0116626]
[1749566891745,1.40332617,108550.0,108540.0,0.01166261]
[1749566892510,1.40332617,108550.0,108540.0,0.01166265]
[1749566892733,1.40332617,108550.0,108540.0,0.00304]
[1749566892959,1.40332617,108550.0,108540.0,0.01166282]
[1749566893183,1.40332617,108550.0,108540.0,0.00304]
[1749566893404,1.49467957,108550.0,108540.0,0.01166027]
[1749566894307,1.49467957,108550.0,108540.0,0.01166062]
[1749566894519,1.49467957,108550.0,108540.0,0.00304]
[1749566894729,1.49467957,108550.0,108540.0,0.01166772]
[1749566894938,1.49467957,108550.0,108540.0,0.00304]
[1749566895149,0.85889811,108550.0,108540.0,0.00304]
[1749566895368,1.52315957,108550.0,108540.0,0.00304]
[1749566895586,1.52315957,108550.0,108540.0,0.00204]
[1749566895807,1.52315957,108550.0,108540.0,0.01066831]
[1749566896031,1.52715957,108550.0,108540.0,0.01066828]
[1749566896283,1.52715957,108550.0,108540.0,0.00866841]
[1749566896509,1.52315957,108550.0,108540.0,4e-05]
[1749566896750,1.53315957,108550.0,108540.0,4e-05]
[1749566896964,0.54274568,108510.0,108500.0,0.16776776]
[1749566897176,0.53353011,108510.0,108500.0,0.29984977]
[1749566897380,0.54274568,108510.0,108500.0,0.29984971]
[1749566897637,0.54274568,108510.0,108500.0,0.29984972]
[1749566897861,0.54274568,108510.0,108500.0,0.29984969]
[1749566898079,0.54274568,108510.0,108500.0,0.29122116]
[1749566898733,0.54274568,108510.0,108500.0,0.2998497]
[1749566898996,0.54274568,108510.0,108500.0,0.2677497]
[1749566899213,0.54274568,108510.0,108500.0,0.25420885]
[1749566899656,0.54274568,108510.0,108500.0,0.24558031]
[1749566899879,0.64366568,108510.0,108500.0,0.24558031]
[1749566900112,0.64366568,108510.0,108500.0,0.25419292]
[1749566900361,0.54274568,108510.0,108500.0,0.25419275]
[1749566900584,0.54274568,108510.0,108500.0,0.24558031]
[1749566900823,0.64366568,108510.0,108500.0,0.25419273]
[1749566901699,0.64366568,108510.0,108500.0,0.27069273]
[1749566902122,0.64366568,108510.0,108500.0,0.28791676]
[1749566902327,0.64366568,108510.0,108500.0,0.27930463]
[1749566902536,0.64366568,108510.0,108500.0,0.26208031]
[1749566902748,0.64366568,108510.0,108500.0,0.2879168]
[1749566903185,0.54274568,108510.0,108500.0,0.2879168]
[1749566903408,0.54274568,108510.0,108500.0,0.95483911]
[1749566903626,0.54274568,108510.0,108500.0,0.92900262]
[1749566904077,0.54274568,108510.0,108500.0,1.08326697]
[1749566904290,0.54274568,108510.0,108500.0,1.05743918]
[1749566904501,0.54274568,108510.0,108500.0,1.08326678]
[1749566904935,0.54274568,108510.0,108500.0,1.08326675]
[1749566905169,0.54274568,108510.0,108500.0,0.33795612]
[1749566905491,0.54274568,108510.0,108500.0,0.30244999]
[1749566905592,0.54274568,108510.0,108500.0,0.95463145]
[1749566905811,0.54274568,108510.0,108500.0,0.98214684]
[1749566906029,0.54274568,108510.0,108500.0,0.36580528]
[1749566906251,0.54274568,108510.0,108500.0,0.62374999]
[1749566906483,0.54274568,108510.0,108500.0,0.66902041]
[1749566906704,0.54274568,108510.0,108500.0,0.67763261]
[1749566906930,0.54274568,108510.0,108500.0,0.65179601]
[1749566907160,0.54274568,108510.0,108500.0,0.66902038]
[1749566907381,0.53376275,108510.0,108500.0,0.67763256]
[1749566907600,0.53376275,108510.0,108500.0,0.76132819]
[1749566907845,0.53376275,108510.0,108500.0,0.75271601]
[1749566908085,0.53376275,108510.0,108500.0,1.41433404]
[1749566908306,0.53376275,108510.0,108500.0,1.41433408]
[1749566908533,0.53376275,108510.0,108500.0,0.76995164]
[1749566908758,0.53376275,108510.0,108500.0,0.7424239]
[1749566908980,0.53376275,108510.0,108500.0,0.74242391]
[1749566909193,0.53376275,108510.0,108500.0,0.76996238]
[1749566909421,0.53376275,108510.0,108500.0,0.72519945]
[1749566909636,0.53376275,108510.0,108500.0,0.75103636]
[1749566909856,0.53376275,108510.0,108500.0,0.80592036]
[1749566910073,0.53376275,108510.0,108500.0,0.75103637]
[1749566910918,0.53376275,108510.0,108500.0,0.73381182]
[1749566911128,0.53376275,108510.0,108500.0,0.75103657]
[1749566911341,0.53376275,108510.0,108500.0,0.80592055]
[1749566911559,0.53376275,108510.0,108500.0,0.7886958]
[1749566911783,0.53376275,108510.0,108500.0,0.80592053]
[1749566912283,0.527774,108510.0,108500.0,0.7886958]
[1749566912931,0.527774,108510.0,108500.0,0.68777798]
[1749566913150,0.527774,108510.0,108500.0,0.72519945]
[1749566913384,0.527774,108510.0,108500.0,0.69229945]
[1749566913611,0.527774,108510.0,108500.0,0.61301554]
[1749566913821,0.527774,108510.0,108500.0,0.57635725]
[1749566914031,0.527774,108510.0,108500.0,0.58394152]
[1749566914251,0.527774,108510.0,108500.0,0.56774152]
[1749566914469,0.527774,108510.0,108500.0,0.57635794]
[1749566914896,0.527774,108510.0,108500.0,0.57635797]
[1749566915112,0.527774,108510.0,108500.0,0.56774152]
[1749566915324,0.527774,108510.0,108500.0,0.57635796]
[1749566915819,0.543674,108510.0,108500.0,0.48500456]
[1749566916006,1.29637546,108510.0,108500.0,0.45744335]
[1749566916226,0.660594,108510.0,108500.0,0.45744362]
[1749566916447,0.660594,108510.0,108500.0,0.16284367]
[1749566916448,1.29637546,108510.0,108500.0,0.16284367]
[1749566916672,1.29637546,108510.0,108500.0,0.15422691]
[1749566916892,1.29637546,108510.0,108500.0,0.16284417]
[1749566917332,0.660594,108510.0,108500.0,0.1800771]
[1749566917767,0.543674,108510.0,108500.0,0.1800771]
[1749566918012,0.556254,108510.0,108500.0,0.18007643]
[1749566918246,0.527774,108510.0,108500.0,0.24558031]
[1749566918488,0.527774,108510.0,108500.0,0.28175743]
[1749566918721,0.527774,108510.0,108500.0,0.31508862]
[1749566918928,0.527774,108510.0,108500.0,0.31508757]
[1749566919140,0.527774,108510.0,108500.0,0.32962842]
[1749566919370,0.527774,108510.0,108500.0,0.3296315]
[1749566919588,0.527774,108510.0,108500.0,0.46720979]
[1749566919810,0.527774,108510.0,108500.0,0.4823096]
[1749566920028,0.527774,108510.0,108500.0,0.5010161]
[1749566920466,0.527774,108510.0,108500.0,0.50101567]
[1749566920685,0.527774,108510.0,108500.0,0.47297348]
[1749566921329,0.527774,108510.0,108500.0,0.50974204]
[1749566921540,0.527774,108510.0,108500.0,0.5097424]
[1749566921749,0.527774,108510.0,108500.0,0.50974256]
[1749566921957,0.527774,108510.0,108500.0,0.49250999]
[1749566922196,0.527774,108510.0,108500.0,0.50974262]
[1749566922422,0.527774,108510.0,108500.0,0.47297406]
[1749566922661,0.527774,108510.0,108500.0,1.10875552]
[1749566922897,0.527774,108510.0,108500.0,1.12704236]
[1749566923161,0.527774,108510.0,108500.0,0.48264482]
[1749566923389,0.527774,108510.0,108500.0,0.47326084]
[1749566923615,0.527774,108510.0,108500.0,1.05387675]
[1749566923852,0.00921429,108520.0,108510.0,0.01454085]
[1749566924092,0.18428084,108530.0,108510.0,1.03208165]
[1749566924093,0.20270866,108530.0,108510.0,1.03208165]
[1749566924309,0.20270866,108530.0,108520.0,0.29413441]
[1749566924529,0.20270866,108530.0,108520.0,0.31133728]
[1749566924778,0.20270866,108530.0,108520.0,0.31131271]
[1749566924995,0.20270866,108530.0,108520.0,0.31131297]
[1749566925209,0.54270866,108530.0,108520.0,0.31131297]
[1749566925421,0.54270866,108530.0,108520.0,0.31131261]
[1749566925634,0.54270866,108530.0,108520.0,0.29410337]
[1749566925843,0.54270866,108530.0,108520.0,0.94709404]
[1749566926076,0.54270866,108530.0,108520.0,0.94709431]
[1749566926302,0.20270866,108530.0,108520.0,0.94709441]
[1749566926519,0.54270866,108530.0,108520.0,0.87575571]
[1749566926966,0.20270866,108530.0,108520.0,1.17035571]
[1749566927173,0.54270866,108530.0,108520.0,1.17035571]
[1749566927644,0.54270866,108530.0,108520.0,1.22541531]
[1749566929381,0.34921361,108530.0,108520.0,1.87930741]
[1749566929603,0.20269015,108540.0,108530.0,0.24614085]
[1749566929815,0.53347713,108540.0,108530.0,0.68710031]
[1749566930023,0.53347713,108540.0,108530.0,0.72377331]
[1749566930718,0.53347713,108540.0,108530.0,0.82765331]
[1749566930958,0.53347713,108540.0,108530.0,0.72677331]
[1749566931206,0.53347713,108540.0,108530.0,0.53804725]
[1749566931403,0.53347713,108540.0,108530.0,0.56654677]
[1749566932107,0.53347713,108540.0,108530.0,0.46566677]
[1749566932326,0.53347713,108540.0,108530.0,0.52983377]
[1749566932575,0.53347713,108540.0,108530.0,0.53083377]
[1749566932804,0.54268947,108540.0,108530.0,0.90371523]
[1749566933039,0.34921242,108540.0,108530.0,0.93122177]
[1749566933269,0.55190232,108540.0,108530.0,0.87521571]
[1749566933493,0.55190232,108540.0,108530.0,0.87421571]
[1749566933719,0.37685165,108540.0,108530.0,0.92917568]
[1749566933932,0.56111551,108540.0,108530.0,0.92917568]
[1749566934359,0.55190292,108540.0,108530.0,0.93017568]
[1749566934814,0.54269007,108540.0,108530.0,0.93017568]
[1749566935022,0.54269007,108540.0,108530.0,0.93117568]
[1749566935243,0.54269007,108540.0,108530.0,0.93017568]
[1749566935445,0.53347705,108540.0,108530.0,0.29739422]
[1749566935657,0.53347705,108540.0,108530.0,1.13217568]
[1749566935868,0.53347705,108540.0,108530.0,0.49939422]
[1749566936079,0.53347705,108540.0,108530.0,1.13517568]
[1749566936296,0.53347705,108540.0,108530.0,1.17179643]
[1749566936575,0.53347705,108540.0,108530.0,1.17178854]
[1749566937318,0.53347705,108540.0,108530.0,0.21996708]
[1749566937535,0.53347705,108540.0,108530.0,0.26226791]
[1749566937762,0.19347705,108540.0,108530.0,0.2401959]
[1749566938178,0.53347705,108540.0,108530.0,0.2401959]
[1749566938384,0.53347705,108540.0,108530.0,0.2371959]
[1749566938851,0.53347705,108540.0,108530.0,0.2381959]
[1749566939920,0.16347705,108540.0,108530.0,0.2351959]
[1749566940138,0.16347705,108540.0,108530.0,0.2361959]
[1749566941501,0.16347705,108540.0,108530.0,0.25159299]
[1749566942394,0.16347705,108540.0,108530.0,0.88737445]
[1749566942609,0.16347705,108540.0,108530.0,0.90307445]
[1749566942882,0.16347705,108540.0,108530.0,0.88737445]
[1749566943090,0.16347705,108540.0,108530.0,0.25159299]
[1749566943523,0.16347705,108540.0,108530.0,0.88737445]
[1749566943735,0.16347705,108540.0,108530.0,0.25159299]
[1749566943944,0.16347705,108540.0,108530.0,0.88737445]
[1749566944157,0.16347705,108540.0,108530.0,0.90337445]
[1749566944867,0.16347705,108540.0,108530.0,0.93998731]
[1749566945091,0.18190317,108540.0,108530.0,0.91252857]
[1749566945321,0.18190317,108540.0,108530.0,0.20337295]
[1749566945546,0.18190317,108540.0,108530.0,0.28817295]
[1749566945767,0.18190317,108540.0,108530.0,0.94045441]
[1749566945986,0.17269024,108540.0,108530.0,0.94045441]
[1749566946197,0.17269024,108540.0,108530.0,0.91298857]
[1749566946655,0.17269024,108540.0,108530.0,0.96794854]
[1749566946885,0.03685113,108540.0,108530.0,0.93173568]
[1749566947142,0.21388323,108550.0,108540.0,0.2323]
[1749566947364,0.21388323,108550.0,108540.0,1.06557677]
[1749566947365,0.20467131,108550.0,108540.0,1.06557677]
[1749566947799,0.20467131,108550.0,108540.0,1.02893637]
[1749566948023,0.01121183,108550.0,108540.0,1.02893637]
[1749566948246,0.002,108550.0,108540.0,1.32353637]
[1749566948476,0.002,108550.0,108540.0,1.68174595]
[1749566948749,0.002,108550.0,108540.0,1.43714595]
[1749566948968,0.002,108550.0,108540.0,2.29404894]
[1749566949209,0.03884155,108570.0,108560.0,0.58724085]
[1749566949453,0.03884155,108570.0,108560.0,2.12426892]
[1749566949454,0.02042018,108570.0,108560.0,2.12426892]
[1749566949685,0.02041984,108570.0,108560.0,2.12426892]
[1749566949908,0.02963006,108570.0,108560.0,2.12426892]
[1749566950128,0.002,108570.0,108560.0,2.18330203]
[1749566950582,0.002,108570.0,108560.0,2.15999028]
[1749566950843,0.21384386,108570.0,108560.0,1.71880882]
[1749566951055,0.01121005,108570.0,108560.0,1.89205671]
[1749566951270,0.01121005,108570.0,108560.0,1.84405671]
[1749566951490,0.02042027,108570.0,108560.0,1.82080882]
[1749566951698,0.01121005,108570.0,108560.0,2.52981387]
[1749566951942,0.002,108570.0,108560.0,2.47981387]
[1749566952370,0.002,108570.0,108560.0,7.50659028]
[1749566952589,0.002,108570.0,108560.0,7.57979586]
[1749566953019,0.002,108570.0,108560.0,7.50559028]
[1749566953246,0.002,108570.0,108560.0,7.59622997]
[1749566953459,0.002,108570.0,108560.0,7.60622997]
[1749566953673,0.002,108570.0,108560.0,7.51459028]
[1749566953909,0.002,108570.0,108560.0,7.69882019]
[1749566954124,0.002,108570.0,108560.0,7.61544146]
[1749566954359,0.002,108570.0,108560.0,7.60622997]
[1749566954588,0.002,108570.0,108560.0,5.40424267]
[1749566954803,0.01120996,108570.0,108560.0,2.48770267]
[1749566955027,0.02042009,108570.0,108560.0,1.90192121]
[1749566955244,0.03884104,108570.0,108560.0,1.68662036]
[1749566955457,0.2046339,108570.0,108560.0,1.1515989]
[1749566955685,0.27771662,108570.0,108560.0,1.66833853]
[1749566955896,0.27771662,108570.0,108560.0,1.76909853]
[1749566956113,0.27771662,108570.0,108560.0,1.82021574]
[1749566956326,0.26850623,108570.0,108560.0,1.82021574]
[1749566956539,0.26850623,108570.0,108560.0,1.52561574]
[1749566956742,0.26850623,108570.0,108560.0,0.14696287]
[1749566956988,0.26850623,108570.0,108560.0,0.27015554]
[1749566957194,0.26850623,108570.0,108560.0,0.916037]
[1749566957408,0.26850623,108570.0,108560.0,0.93657785]
[1749566957616,0.26850623,108570.0,108560.0,0.93357785]
[1749566957838,0.002,108570.0,108560.0,0.94647785]
[1749566958056,0.02042018,108570.0,108560.0,1.6116972]
[1749566958313,0.03884095,108570.0,108560.0,1.9536972]
[1749566958526,0.02963048,108570.0,108560.0,1.9536972]
[1749566958732,0.03884095,108570.0,108560.0,2.2482972]
[1749566958940,0.02963048,108570.0,108560.0,2.21172084]
[1749566959152,0.02042018,108570.0,108560.0,2.21172084]
[1749566959367,0.03884104,108570.0,108560.0,2.20772084]
[1749566959584,0.01120996,108570.0,108560.0,2.21072084]
[1749566959795,0.22305424,108570.0,108560.0,1.57793938]
[1749566960000,0.20463406,108570.0,108560.0,1.81446739]
[1749566960435,0.19542359,108570.0,108560.0,1.71374739]
[1749566960609,0.19542359,108570.0,108560.0,1.81446739]
[1749566961508,0.21384411,108570.0,108560.0,1.81446739]
[1749566961726,0.20463398,108570.0,108560.0,1.81446739]
[1749566962411,0.20463398,108570.0,108560.0,1.51986739]
[1749566963382,0.19542359,108570.0,108560.0,1.51986739]
[1749566963811,0.18621295,108570.0,108560.0,1.40324739]
[1749566964009,0.18621295,108570.0,108560.0,1.46142826]
[1749566964444,0.002,108570.0,108560.0,1.49372826]
[1749566964593,0.02042035,108570.0,108560.0,1.46629683]
[1749566965037,0.22305441,108570.0,108560.0,1.46629683]
[1749566965270,0.02042035,108570.0,108560.0,1.52116739]
[1749566965456,0.002,108570.0,108560.0,1.52116739]
[1749566965663,0.002,108570.0,108560.0,2.15694885]
[1749566965914,0.002,108570.0,108560.0,2.12038084]
[1749566966111,0.002,108570.0,108560.0,2.06551028]
[1749566966954,0.002,108570.0,108560.0,2.18866267]
[1749566967096,0.002,108570.0,108560.0,7.23866267]
[1749566967301,0.002,108570.0,108560.0,7.16551028]
[1749566967512,0.002,108570.0,108560.0,7.23866267]
[1749566967909,0.002,108570.0,108560.0,7.16551028]
[1749566968103,0.002,108570.0,108560.0,7.23866267]
[1749566968104,0.01120988,108570.0,108560.0,7.23866267]
[1749566968299,0.002,108570.0,108560.0,8.02316267]
[1749566969193,0.002,108570.0,108560.0,8.07316267]
[1749566970262,0.002,108570.0,108560.0,8.09816267]
[1749566970476,0.29609643,108590.0,108580.0,1.22302231]
[1749566970696,0.29609643,108590.0,108580.0,1.50657596]
[1749566970875,0.28688808,108590.0,108580.0,1.50657596]
[1749566971123,0.27767947,108590.0,108580.0,1.16657596]
[1749566972004,0.27767947,108590.0,108580.0,1.16658604]
[1749566972237,0.27767947,108590.0,108580.0,1.13098386]
[1749566972453,0.08429124,108590.0,108580.0,1.13098386]
[1749566972670,0.03883426,108590.0,108580.0,1.13198386]